fUST/lending_fUST_20240319
["ID","MTS","AMOUNT","RATE_DAILY","PERIOD"]
[319557913,1710856247286,-1500.0,0.00164384,120]
[319557914,1710856247296,-1500.0,0.00164384,120]
[319557915,1710856247305,-1500.0,0.00164384,120]
[319557916,1710856247314,-1500.0,0.00164384,120]
[319557917,1710856247324,-1500.0,0.00164384,120]
[319557918,1710856247333,-1500.0,0.00164384,120]
[319557919,1710856247342,-1500.0,0.00164384,120]
[319557920,1710856247352,-1500.0,0.00164384,120]
[319557921,1710856247361,-1500.0,0.00164384,120]
[319557922,1710856247372,-1500.0,0.00164384,120]
[319557923,1710856247381,-1500.0,0.00164384,120]
[319557924,1710856247391,-1500.0,0.00164384,120]
[319557925,1710856247400,-1500.0,0.00164384,120]
[319557926,1710856247409,-1500.0,0.00164384,120]
[319557927,1710856247419,-1500.0,0.00164384,120]
[319557928,1710856247428,-1500.0,0.00164384,120]
[319557929,1710856247438,-1500.0,0.00164384,120]
[319557930,1710856247447,-1500.0,0.00164384,120]
[319557931,1710856247457,-1500.0,0.00164384,120]
[319557932,1710856247470,-1500.0,0.00164384,120]
[319557933,1710856247480,-1525.083044,0.00164384,120]
[319557934,1710856247489,-153.0,0.00164384,120]
[319557935,1710856247499,-153.0,0.00164384,120]
[319557936,1710856247508,-164.0,0.00164384,120]
[319557937,1710856247518,-288.135341,0.00164384,120]
[319557938,1710856247529,-151.0,0.00164384,120]
[319557939,1710856247539,-151.0,0.00164384,120]
[319557940,1710856247548,-5000.0,0.00165322,120]
[319557941,1710856247558,-1667.75,0.00180071,120]
[319557942,1710856247568,-158.181088,0.0018967,120]
[319557943,1710856247578,-158.181088,0.0018967,120]
[319557944,1710856247587,-252.280578,0.0018967,120]
[319557945,1710856247596,-252.280578,0.0018967,120]
[319557946,1710856247606,-165.68408812,0.00191,120]
[319557947,1710856247615,-500.0,0.0019178,120]
[319557948,1710856247625,-153.0,0.00192178,120]
[319557949,1710856247634,-153.0,0.00192178,120]
[319557950,1710856247643,-153.0,0.00192178,120]
[319557951,1710856247653,-153.0,0.00192178,120]
[319557952,1710856247662,-153.0,0.00192178,120]
[319557953,1710856247671,-50000.0,0.00193,120]
[319557954,1710856247680,-30001.45,0.00198468,120]
[319557955,1710856247690,-1746.96,0.00199588,120]
[319557956,1710856247699,-2909.44,0.00199588,120]
[319557957,1710856247709,-906.55,0.00199588,120]
[319557958,1710856247720,-500.0,0.00199588,120]
[319557959,1710856247729,-500.0,0.00199588,120]
[319557960,1710856247738,-1748.07,0.00199588,120]
[319557961,1710856247748,-611.45,0.00199588,120]
[319557962,1710856247757,-10000.0,0.00199588,120]
[319557963,1710856247768,-1048.14,0.00199588,120]
[319557964,1710856247777,-5757.22,0.00199588,120]
[319557965,1710856247787,-500.0,0.00199588,120]
[319557966,1710856247796,-2477.48,0.00199588,120]
[319557967,1710856247805,-4166.71,0.00199588,120]
[319557968,1710856247814,-1000.0,0.00199588,7]
[319557969,1710856247823,-500.0,0.00199588,120]
[319557970,1710856247833,-541.48,0.00199588,90]
[319557971,1710856247842,-2952.03,0.00199588,120]
[319557972,1710856247852,-6343.91,0.00199588,120]
[319557973,1710856247861,-154.482884,0.00199588,120]
[319557974,1710856247870,-9398.36,0.00199588,120]
[319557975,1710856247879,-5098.09,0.00199588,120]
[319557976,1710856247888,-500.0,0.00199588,120]
[319557977,1710856247897,-2331.1,0.00199588,120]
[319557978,1710856247906,-831.68,0.00199588,60]
[319557979,1710856247917,-1328.99,0.00199588,120]
[319557980,1710856247926,-3484.33,0.00199588,120]
[319557981,1710856247935,-500.0,0.00199999,120]
[319557982,1710856247944,-29968.89236,0.002,20]
[319557983,1710856247954,-5000.0,0.002,120]
[319557984,1710856247965,-2000.0,0.002,120]
[319557985,1710856247974,-500.0,0.002,120]
[319557986,1710856247984,-5000.0,0.002,120]
[319557987,1710856247993,-100000.0,0.002,120]
[319557988,1710856248003,-158.181088,0.002,120]
[319557989,1710856248012,-158.181088,0.002,120]
[319557990,1710856248022,-252.280578,0.002,120]
[319557991,1710856248032,-252.280578,0.002,120]
[319557992,1710856248041,-151.0,0.002,120]
[319557993,1710856248050,-5000.0,0.00201139,120]
[319557994,1710856248059,-1352.72,0.00204167,120]
[319557995,1710856248069,-500.0,0.00204167,120]
[319557996,1710856248078,-5014.34,0.00204167,120]
[319557997,1710856248087,-500.0,0.00204168,120]
[319557998,1710856248096,-500.0,0.00204168,120]
[319557999,1710856248105,-500.0,0.00204168,7]
[319558000,1710856248114,-879.01,0.00204168,120]
[319558001,1710856248123,-500.0,0.00204168,120]
[319558002,1710856248133,-1308.75,0.00204168,120]
[319558003,1710856248142,-500.0,0.00204168,120]
[319558004,1710856248152,-500.0,0.00204168,120]
[319558005,1710856248161,-2345.92,0.00204168,120]
[319558006,1710856248171,-500.0,0.00204168,120]
[319558007,1710856248181,-500.0,0.00204168,120]
[319558008,1710856248191,-500.0,0.00204168,120]
[319558009,1710856248200,-2248.95,0.00204168,120]
[319558010,1710856248213,-563.71,0.00204168,120]
[319558011,1710856248223,-500.0,0.00204168,120]
[319558012,1710856248232,-854.34,0.00204168,120]
[319558013,1710856248242,-500.0,0.00204168,120]
[319558014,1710856248251,-950.6,0.00204168,120]
[319558015,1710856248260,-151.0,0.00204168,120]
[319558016,1710856248269,-500.0,0.00204168,120]
[319558017,1710856248278,-500.0,0.00204168,120]
[319558018,1710856248287,-900.21,0.00204168,120]
[319558019,1710856248360,-1667.75,0.00207468,120]
[319558020,1710856248370,-2322.82,0.00207488,120]
[319558021,1710856248380,-624.71,0.00207488,120]
[319558022,1710856248389,-585.97,0.00207488,120]
[319558023,1710856248398,-1423.48,0.00207488,120]
[319558024,1710856248408,-1674.17,0.00207488,120]
[319558025,1710856248418,-1250.29,0.00207488,120]
[319558026,1710856248427,-3000.0,0.0021,120]
[319558027,1710856248438,-15095.99,0.00214788,120]
[319558028,1710856248448,-345.72813397,0.00219175,120]
[319558029,1710856248458,-500.0,0.00219175,120]
[319558030,1710856248473,-500.0,0.00219175,120]
[319558031,1710856248484,-642.08,0.00219175,120]
[319558032,1710856248494,-158.181088,0.00219175,120]
[319558033,1710856248503,-500.0,0.00219175,120]
[319558034,1710856248513,-158.181088,0.00219175,120]
[319558035,1710856248522,-252.280578,0.00219175,120]
[319558036,1710856248532,-252.280578,0.00219175,120]
[319558037,1710856248541,-305.436756,0.00219175,120]
[319558038,1710856248551,-494.06338372,0.00219175,120]
[319558039,1710856248561,-500.0,0.00219175,120]
[319558040,1710856248571,-2771.7,0.00219177,120]
[319558041,1710856248581,-500.0,0.00219177,120]
[319558042,1710856248591,-500.0,0.00219177,120]
[319558043,1710856248601,-500.0,0.00219177,120]
[319558044,1710856248610,-500.0,0.00219177,120]
[319558045,1710856248619,-1163.91,0.00219177,120]
[319558046,1710856248629,-878.95,0.00219177,120]
[319558047,1710856248638,-865.23,0.00219177,120]
[319558048,1710856248648,-1430.71,0.00219177,120]
[319558049,1710856248657,-501.98357693,0.00219177,120]
[319558050,1710856248667,-500.0,0.00219177,120]
[319558051,1710856248676,-500.0,0.00219177,120]
[319558052,1710856248686,-500.0,0.00219177,120]
[319558053,1710856248695,-500.0,0.00219177,120]
[319558054,1710856248705,-500.0,0.00219177,120]
[319558055,1710856248718,-790.81,0.00219177,10]
[319558056,1710856248728,-1381.27,0.00219177,120]
[319558057,1710856248738,-250.0,0.00219177,120]
[319558058,1710856248749,-2000.0,0.0022,120]
[319558059,1710856248759,-417.68895945,0.00224741,120]
[319558060,1710856248770,-1667.75,0.00234865,120]
[319558061,1710856248780,-2000.0,0.0024,120]
[319558062,1710856248790,-5000.0,0.00244717,120]
[319558063,1710856248800,-60518.0,0.0025,120]
[319558064,1710856248809,-3000.0,0.0025,120]
[319558065,1710856248818,-2000.0,0.0026,120]
[319558066,1710856248828,-1667.75,0.00262263,120]
[319558067,1710856248837,-417.68895945,0.00273252,120]
[319558068,1710856248846,-417.68895945,0.00273449,120]
[319558069,1710856248855,-500.0,0.00273972,120]
[319558070,1710856248864,-158.181088,0.00273973,120]
[319558071,1710856248873,-158.181088,0.00273973,120]
[319558072,1710856248882,-158.181088,0.00273973,120]
[319558073,1710856248891,-158.181088,0.00273973,120]
[319558074,1710856248899,-158.181088,0.00273973,120]
[319558075,1710856248909,-158.181093,0.00273973,120]
[319558076,1710856248917,-252.280578,0.00273973,120]
[319558077,1710856248927,-252.280578,0.00273973,120]
[319558078,1710856248936,-252.280578,0.00273973,120]
[319558079,1710856248945,-252.280578,0.00273973,120]
[319558080,1710856248954,-252.280578,0.00273973,120]
[319558081,1710856248967,-417.68895945,0.00274035,120]
[319558082,1710856248976,-2000.0,0.0028,120]
[319558083,1710856248986,-156.98429157,0.00289,120]
[319558084,1710856248996,-1667.75,0.0028966,120]
[319558085,1710856249005,-417.68895945,0.00296172,120]
[319558086,1710856249015,-5000.0,0.00297735,120]
[319558087,1710856249025,-500.0,0.00299999,120]
[319558088,1710856249035,-5000.0,0.003,120]
[319558089,1710856249044,-2000.0,0.003,120]
[319558090,1710856249057,-5000.0,0.003,120]
[319558091,1710856249066,-731.0,0.003,120]
[319558092,1710856249076,-500.0,0.003,120]
[319558093,1710856249085,-100000.0,0.003,120]
[319558094,1710856249096,-3000.0,0.003,120]
[319558095,1710856249106,-317.0415775,0.00301369,120]
[319558096,1710856249116,-30001.45,0.00308057,120]
[319558097,1710856249125,-1746.96,0.00309177,120]
[319558098,1710856249135,-2909.44,0.00309177,120]
[319558099,1710856249144,-906.55,0.00309177,120]
[319558100,1710856249154,-500.0,0.00309177,120]
[319558101,1710856249164,-500.0,0.00309177,120]
[319558102,1710856249174,-1748.07,0.00309177,120]
[319558103,1710856249185,-611.45,0.00309177,120]
[319558104,1710856249195,-10000.0,0.00309177,120]
[319558105,1710856249206,-1048.14,0.00309177,120]
[319558106,1710856249219,-5757.22,0.00309177,120]
[319558107,1710856249228,-500.0,0.00309177,120]
[319558108,1710856249237,-2477.48,0.00309177,120]
[319558109,1710856249247,-4166.71,0.00309177,120]
[319558110,1710856249256,-1000.0,0.00309177,7]
[319558111,1710856249265,-500.0,0.00309177,120]
[319558112,1710856249275,-541.48,0.00309177,90]
[319558113,1710856249287,-2952.03,0.00309177,120]
[319558114,1710856249298,-6343.91,0.00309177,120]
[319558115,1710856249308,-9398.36,0.00309177,120]
[319558116,1710856249318,-5098.09,0.00309177,120]
[319558117,1710856249328,-500.0,0.00309177,120]
[319558118,1710856249337,-2331.1,0.00309177,120]
[319558119,1710856249348,-831.68,0.00309177,60]
[319558120,1710856249357,-1328.99,0.00309177,120]
[319558121,1710856249367,-3484.33,0.00309177,120]
[319558122,1710856249376,-1352.72,0.00313756,120]
[319558123,1710856249386,-500.0,0.00313756,120]
[319558124,1710856249395,-5014.34,0.00313756,120]
[319558125,1710856249404,-500.0,0.00313757,120]
[319558126,1710856249413,-500.0,0.00313757,120]
[319558127,1710856249422,-500.0,0.00313757,7]
[319558128,1710856249432,-879.01,0.00313757,120]
[319558129,1710856249442,-500.0,0.00313757,120]
[319558130,1710856249452,-1308.75,0.00313757,120]
[319558131,1710856249464,-500.0,0.00313757,120]
[319558132,1710856249474,-500.0,0.00313757,120]
[319558133,1710856249484,-2345.92,0.00313757,120]
[319558134,1710856249493,-499.5,0.00313757,120]
[319558135,1710856249502,-500.0,0.00313757,120]
[319558136,1710856249512,-500.0,0.00313757,120]
[319558137,1710856249521,-2248.95,0.00313757,120]
[319558138,1710856249531,-563.71,0.00313757,120]
[319558139,1710856249541,-500.0,0.00313757,120]
[319558140,1710856249551,-854.34,0.00313757,120]
[319558141,1710856249560,-500.0,0.00313757,120]
[319558142,1710856249570,-950.6,0.00313757,120]
[319558143,1710856249579,-500.0,0.00313757,120]
[319558144,1710856249589,-500.0,0.00313757,120]
[319558145,1710856249598,-900.21,0.00313757,120]
[319558146,1710856249608,-1667.75,0.00317057,120]
[319558147,1710856249618,-2322.82,0.00317077,120]
[319558148,1710856249628,-624.71,0.00317077,120]
[319558149,1710856249638,-585.97,0.00317077,120]
[319558150,1710856249648,-1423.48,0.00317077,120]
[319558151,1710856249658,-1674.17,0.00317077,120]
[319558152,1710856249668,-1250.29,0.00317077,120]
[319558153,1710856249677,-2000.0,0.0032,120]
[319558154,1710856249686,-500.0,0.00328764,120]
[319558155,1710856249696,-563.11168848,0.00328764,120]
[319558156,1710856249706,-642.08,0.00328764,120]
[319558157,1710856249722,-500.0,0.00328764,120]
[319558158,1710856249732,-500.0,0.00328764,120]
[319558159,1710856249743,-2771.7,0.00328766,120]
[319558160,1710856249753,-500.0,0.00328766,120]
[319558161,1710856249764,-500.0,0.00328766,120]
[319558162,1710856249774,-220.95619116,0.00328766,120]
[319558163,1710856249786,-1163.91,0.00328766,120]
[319558164,1710856249797,-878.95,0.00328766,120]
[319558165,1710856249815,-865.23,0.00328766,120]
[319558166,1710856249826,-1430.71,0.00328766,120]
[319558167,1710856249837,-500.0,0.00328766,120]
[319558168,1710856249848,-500.0,0.00328766,120]
[319558169,1710856249858,-500.0,0.00328766,120]
[319558170,1710856249868,-500.0,0.00328766,120]
[319558171,1710856249941,-500.0,0.00328766,120]
[319558172,1710856249952,-790.81,0.00328766,10]
[319558173,1710856249968,-1381.27,0.00328766,120]
[319558174,1710856249979,-250.0,0.00328766,120]
[319558175,1710856249990,-417.68895945,0.00331462,120]
[319558176,1710856250001,-2000.0,0.0034,120]
[319558177,1710856250013,-15095.99,0.00341676,120]
[319558178,1710856250024,-1667.75,0.00344454,120]
[319558179,1710856250034,-417.68895945,0.00344903,120]
[319558180,1710856250045,-417.68895945,0.00353787,120]
[319558181,1710856250056,-417.68895945,0.00354173,120]
[319558182,1710856250068,-2000.0,0.0036,120]
[319558183,1710856250079,-10000.0,0.0036224,120]
[319558184,1710856250091,-1667.75,0.00371852,120]
[319558185,1710856250101,-2000.0,0.0038,120]
[319558186,1710856250112,-157.01568843,0.00385,120]
[319558187,1710856250123,-417.68895945,0.00386644,120]
[319558188,1710856250133,-1667.75,0.00399249,120]
[319558189,1710856250144,-5000.0,0.004,120]
[319558190,1710856250154,-2000.0,0.004,120]
[319558191,1710856250164,-5000.0,0.004,120]
[319558192,1710856250175,-600.0,0.004,120]
[319558193,1710856250187,-2500.0,0.004,120]
[319558194,1710856250197,-500.0,0.004,120]
[319558195,1710856250207,-100000.0,0.004,120]
[319558196,1710856250229,-252.280573,0.004,120]
[319558197,1710856250240,-417.68895945,0.00404406,120]
[319558198,1710856250250,-417.68895945,0.00414614,120]
[319558199,1710856250261,-30001.45,0.00417646,120]
[319558200,1710856250271,-1746.96,0.00418766,120]
[319558201,1710856250282,-2909.44,0.00418766,120]
[319558202,1710856250295,-906.55,0.00418766,120]
[319558203,1710856250307,-503.67226277,0.00418766,120]
[319558204,1710856250318,-500.0,0.00418766,120]
[319558205,1710856250330,-1748.07,0.00418766,120]
[319558206,1710856250341,-611.45,0.00418766,120]
[319558207,1710856250353,-3660.57750804,0.00418766,120]
[319558208,1710856250365,-1048.14,0.00418766,120]
[319558209,1710856250397,-5757.22,0.00418766,120]
[319558210,1710856250408,-500.0,0.00418766,120]
[319558211,1710856250419,-2477.48,0.00418766,120]
[319558212,1710856250430,-4166.71,0.00418766,120]
[319558213,1710856250441,-1000.0,0.00418766,7]
[319558214,1710856250452,-500.0,0.00418766,120]
[319558215,1710856250467,-541.48,0.00418766,90]
[319558216,1710856250478,-2952.03,0.00418766,120]
[319558217,1710856250490,-6343.91,0.00418766,120]
[319558218,1710856250500,-9398.36,0.00418766,120]
[319558219,1710856250510,-5098.09,0.00418766,120]
[319558220,1710856250520,-500.0,0.00418766,120]
[319558221,1710856250530,-2331.1,0.00418766,120]
[319558222,1710856250539,-831.68,0.00418766,60]
[319558223,1710856250549,-1328.99,0.00418766,120]
[319558224,1710856250559,-3484.33,0.00418766,120]
[319558225,1710856250570,-2000.0,0.0042,120]
[319558226,1710856250579,-1352.72,0.00423345,120]
[319558227,1710856250589,-500.0,0.00423345,120]
[319558228,1710856250599,-5014.34,0.00423345,120]
[319558229,1710856250608,-500.0,0.00423346,120]
[319558230,1710856250618,-500.0,0.00423346,120]
[319558231,1710856250628,-500.0,0.00423346,7]
[319558232,1710856250638,-879.01,0.00423346,120]
[319558233,1710856250648,-500.0,0.00423346,120]
[319558234,1710856250659,-1308.75,0.00423346,120]
[319558235,1710856250669,-500.0,0.00423346,120]
[319558236,1710856250678,-500.0,0.00423346,120]
[319558237,1710856250688,-2345.92,0.00423346,120]
[319558238,1710856250698,-500.0,0.00423346,120]
[319558239,1710856250708,-500.0,0.00423346,120]
[319558240,1710856250723,-2248.95,0.00423346,120]
[319558241,1710856250732,-563.71,0.00423346,120]
[319558242,1710856250742,-500.0,0.00423346,120]
[319558243,1710856250752,-854.34,0.00423346,120]
[319558244,1710856250761,-500.0,0.00423346,120]
[319558245,1710856250771,-950.6,0.00423346,120]
[319558246,1710856250780,-500.0,0.00423346,120]
[319558247,1710856250790,-500.0,0.00423346,120]
[319558248,1710856250799,-900.21,0.00423346,120]
[319558249,1710856250809,-417.68895945,0.00424435,120]
[319558250,1710856250818,-1667.75,0.00426646,120]
[319558251,1710856250828,-2322.82,0.00426666,120]
[319558252,1710856250837,-624.71,0.00426666,120]
[319558253,1710856250847,-585.97,0.00426666,120]
[319558254,1710856250856,-1423.48,0.00426666,120]
[319558255,1710856250865,-1674.17,0.00426666,120]
[319558256,1710856250875,-1250.29,0.00426666,120]
[319558257,1710856250885,-500.0,0.00438353,120]
[319558258,1710856250894,-642.08,0.00438353,120]
[319558259,1710856250904,-500.0,0.00438353,120]
[319558260,1710856250913,-500.0,0.00438353,120]
[319558261,1710856250922,-5583.97494564,0.00438354,30]
[319558262,1710856250931,-2771.7,0.00438355,120]
[319558263,1710856250940,-500.0,0.00438355,120]
[319558264,1710856250949,-1163.91,0.00438355,120]
[319558265,1710856250959,-878.95,0.00438355,120]
[319558266,1710856250972,-865.23,0.00438355,120]
[319558267,1710856250981,-1430.71,0.00438355,120]
[319558268,1710856250990,-500.0,0.00438355,120]
[319558269,1710856251001,-500.0,0.00438355,120]
[319558270,1710856251010,-500.0,0.00438355,120]
[319558271,1710856251019,-500.0,0.00438355,120]
[319558272,1710856251029,-500.0,0.00438355,120]
[319558273,1710856251038,-790.81,0.00438355,10]
[319558274,1710856251047,-1381.27,0.00438355,120]
[319558275,1710856251057,-250.0,0.00438355,120]
[319558276,1710856251067,-2000.0,0.0044,120]
[319558277,1710856251077,-10000.0,0.00440721,120]
[319558278,1710856251086,-1667.75,0.00454043,120]
[319558279,1710856251096,-2000.0,0.0046,120]
[319558280,1710856251105,-15095.99,0.00468564,120]
[319558281,1710856251115,-417.68895945,0.00475073,120]
[319558282,1710856251124,-1000.0,0.00479,120]
[319558283,1710856251134,-2000.0,0.0048,120]
[319558284,1710856251143,-306.71013,0.00481,120]
[319558285,1710856251153,-1667.75,0.00481441,120]
[319558286,1710856251162,-417.68895945,0.00483382,120]
[319558287,1710856251172,-1000.0,0.00489,120]
[319558288,1710856251183,-2975.86896829,0.0049,120]
[319558289,1710856251193,-2965.0,0.00491,120]
[319558290,1710856251203,-2965.0,0.00492,120]
[319558291,1710856251218,-2965.0,0.00493,120]
[319558292,1710856251229,-569.46076911,0.00494,120]
[319558293,1710856251239,-2965.0,0.00494,120]
[319558294,1710856251249,-565.0,0.00495,120]
[319558295,1710856251259,-2965.0,0.00495,120]
[319558296,1710856251269,-417.68895945,0.00495452,120]
[319558297,1710856251279,-565.0,0.00496,120]
[319558298,1710856251289,-2965.0,0.00496,120]
[319558299,1710856251299,-565.0,0.00497,120]
[319558300,1710856251310,-2965.0,0.00497,120]
[319558301,1710856251319,-565.0,0.00498,120]
[319558302,1710856251329,-2965.0,0.00498,120]
[319558303,1710856251339,-417.68895945,0.0049835,120]
[319558304,1710856251349,-230.58,0.0049899,35]
[319558305,1710856251359,-1000.0,0.00499,120]
[319558306,1710856251369,-565.0,0.00499,120]
[319558307,1710856251379,-2965.0,0.00499,120]
[319558308,1710856251391,-5000.0,0.005,120]
[319558309,1710856251400,-2000.0,0.005,120]
[319558310,1710856251473,-1000.0,0.005,120]
[319558311,1710856251483,-13025.773165,0.005,120]
[319558312,1710856251493,-52050.970988,0.005,120]
[319558313,1710856251503,-3000.0,0.005,120]
[319558314,1710856251513,-5000.0,0.005,120]
[319558315,1710856251522,-151.0,0.005,120]
[319558316,1710856251532,-600.0,0.005,120]
[319558317,1710856251542,-4000.0,0.005,30]
[319558318,1710856251552,-4000.0,0.005,30]
[319558319,1710856251561,-3999.82399999,0.005,30]
[319558320,1710856251570,-4000.0,0.005,30]
[319558321,1710856251580,-3999.956,0.005,30]
[319558322,1710856251590,-100000.0,0.005,120]
[319558323,1710856251599,-794.6930973,0.005,120]
[319558324,1710856251609,-565.0,0.005,120]
[319558325,1710856251619,-2965.0,0.005,120]
[319558326,1710856251630,-1667.75,0.00508838,120]
[319558327,1710856251639,-1000.0,0.00509,120]
[319558328,1710856251649,-1000.0,0.00519,120]
[319558329,1710856251659,-2000.0,0.0052,120]
[319558330,1710856251669,-151.0,0.00526658,120]
[319558331,1710856251679,-150.5,0.0052697,35]
[319558332,1710856251689,-150.5,0.0052698,35]
[319558333,1710856251698,-150.5,0.0052699,35]
[319558334,1710856251707,-1746.96,0.00528355,120]
[319558335,1710856251721,-2909.44,0.00528355,120]
[319558336,1710856251731,-906.55,0.00528355,120]
[319558337,1710856251741,-500.0,0.00528355,120]
[319558338,1710856251751,-1748.07,0.00528355,120]
[319558339,1710856251760,-611.45,0.00528355,120]
[319558340,1710856251770,-1048.14,0.00528355,120]
[319558341,1710856251780,-2825.49538421,0.00528355,120]
[319558342,1710856251848,-1032.2955646,0.00528355,120]
[319558343,1710856251865,-1899.42905119,0.00528355,120]
[319558344,1710856251875,-500.0,0.00528355,120]
[319558345,1710856251886,-2477.48,0.00528355,120]
[319558346,1710856251896,-4166.71,0.00528355,120]
[319558347,1710856251906,-1000.0,0.00528355,7]
[319558348,1710856251915,-386.97999603,0.00528355,120]
[319558349,1710856252442,-153.0,0.00163562,120]
[319558350,1710856252453,-153.0,0.00164384,120]
[319558351,1710856252463,-153.0,0.00164384,120]
[319558352,1710856252476,-402.4065288,0.00164384,120]
[319558353,1710856252485,-153.0,0.00164384,120]
[319558354,1710856252494,-208.62669068,0.00527235,120]
[319558355,1710856252511,-29792.82330932,0.00527235,120]
[319558356,1710856252521,-113.02000397,0.00528355,120]
[319558357,1710856252530,-541.48,0.00528355,90]
[319558358,1710856252540,-2952.03,0.00528355,120]
[319558359,1710856252550,-6343.91,0.00528355,120]
[319558360,1710856252560,-9398.36,0.00528355,120]
[319558361,1710856252570,-5098.09,0.00528355,120]
[319558362,1710856252580,-500.0,0.00528355,120]
[319558363,1710856252589,-2331.1,0.00528355,120]
[319558364,1710856252600,-831.68,0.00528355,60]
[319558365,1710856252610,-1328.99,0.00528355,120]
[319558366,1710856252621,-3484.33,0.00528355,120]
[319558367,1710856252631,-1000.0,0.00529,120]
[319558368,1710856252641,-417.68895945,0.00531193,120]
[319558369,1710856252652,-1352.72,0.00532934,120]
[319558370,1710856252661,-338.03267437,0.00532934,120]
[319558371,1710856252674,-5014.34,0.00532934,120]
[319558372,1710856252684,-500.0,0.00532935,120]
[319558373,1710856252694,-500.0,0.00532935,120]
[319558374,1710856252704,-500.0,0.00532935,7]
[319558375,1710856252714,-879.01,0.00532935,120]
[319558376,1710856252730,-500.0,0.00532935,120]
[319558377,1710856252797,-1308.75,0.00532935,120]
[319558378,1710856252807,-176.10401482,0.00532935,120]
[319558379,1710856252817,-500.0,0.00532935,120]
[319558380,1710856252826,-2345.92,0.00532935,120]
[319558381,1710856252836,-500.0,0.00532935,120]
[319558382,1710856252845,-500.0,0.00532935,120]
[319558383,1710856252854,-1325.00884685,0.00532935,120]
[319558389,1710856479206,-1753.95555146,0.00057,120]
[319558390,1710856479227,-2202.94418815,0.00057,120]
[319558391,1710856479247,-561.10026039,0.0006,120]
[319558392,1710856489758,4970.0,0.0005,60]
[319558393,1710856642559,151.88689434,0.00044641,30]
[319558394,1710856643064,151.88689434,0.00053345,60]
[319558395,1710856643581,151.88689434,0.00055627,120]
[319558396,1710856661916,1696.6645711,0.000495,2]
[319558397,1710856670744,1000.0,0.000575,120]
[319558398,1710856710707,1000.0,0.00057,120]
[319558403,1710857227117,-164.08638464,0.00059999,2]
[319558404,1710857227139,-20.38260488,0.0006,120]
[319558405,1710857227160,-166.666666,0.00061057,2]
[319558406,1710857227184,-170.995944,0.00061813,2]
[319558407,1710857227205,-154.98450155,0.00062076,7]
[319558408,1710857227227,-1275.9855706,0.00062113,2]
[319558409,1710857227250,-843.79530176,0.00063242,2]
[319558410,1710857227271,-242.0,0.00063339,20]
[319558411,1710857227291,-733.87514472,0.0006334,120]
[319558413,1710857239413,151.88689435,0.00045033,30]
[319558415,1710857239955,151.88689435,0.00047817,30]
[319558416,1710857240448,151.88689435,0.00049661,30]
[319558422,1710857352110,-180.68711909,0.00063331,2]
[319558423,1710857352129,-1266.12485528,0.0006334,120]
[319558424,1710857352149,-2000.0,0.0006334,120]
[319558425,1710857352169,-2000.0,0.0006334,120]
[319558426,1710857352189,-1960.0,0.0006334,120]
[319558427,1710857352208,-309.81307306,0.00063342,2]
[319558428,1710857352227,-639.33425979,0.00063342,7]